lending/lending_fUSD_20250418
["ID","MTS","AMOUNT","RATE_DAILY","PERIOD"]
[358346318,1744966247287,-500.0,0.00076712,120]
[358346319,1744966247296,-500.0,0.00076712,120]
[358346320,1744966247306,-521.64515425,0.00076712,120]
[358346321,1744966247315,-500.0,0.00076712,120]
[358346322,1744966247325,-500.0,0.00076712,14]
[358346323,1744966247336,-919.17,0.00076712,120]
[358346324,1744966247346,-151.9705708,0.00076712,120]
[358346325,1744966247356,-343.01327034,0.00076712,120]
[358346326,1744966247366,-580.97251579,0.00076712,120]
[358346327,1744966247375,-500.0,0.00076712,14]
[358346328,1744966247384,-151.0,0.00076712,120]
[358346329,1744966247394,-500.0,0.00076712,120]
[358346330,1744966247403,-500.0,0.00076712,120]
[358346331,1744966247412,-151.0,0.00076712,120]
[358346332,1744966247422,-500.0,0.00076712,120]
[358346333,1744966247431,-546.52947968,0.00076712,120]
[358346334,1744966247440,-500.0,0.00076712,120]
[358346335,1744966247450,-500.0,0.00076712,120]
[358346336,1744966247459,-500.0,0.00076712,120]
[358346337,1744966247467,-151.0,0.00076712,120]
[358346338,1744966247476,-500.0,0.00076712,120]
[358346339,1744966247485,-500.0,0.00076712,120]
[358346340,1744966247494,-500.0,0.00076712,120]
[358346341,1744966247503,-655.13,0.00076712,120]
[358346342,1744966247512,-428.501196,0.00076712,120]
[358346343,1744966247522,-500.0,0.00076712,120]
[358346344,1744966247531,-428.501196,0.00076712,120]
[358346345,1744966247540,-500.0,0.00076712,120]
[358346346,1744966247549,-500.0,0.00076712,120]
[358346347,1744966247558,-500.0,0.00076712,120]
[358346348,1744966247567,-723.29,0.00076712,120]
[358346349,1744966247576,-500.0,0.00076712,120]
[358346350,1744966247585,-151.0,0.00076712,120]
[358346351,1744966247594,-539.80120261,0.00076712,120]
[358346352,1744966247603,-507.014998,0.00076712,7]
[358346353,1744966247611,-423.57515015,0.00076712,120]
[358346354,1744966247621,-500.0,0.00076712,120]
[358346355,1744966247631,-500.0,0.00076712,120]
[358346356,1744966247640,-500.0,0.00076712,120]
[358346357,1744966247649,-500.0,0.00076712,120]
[358346358,1744966247658,-500.0,0.00076712,120]
[358346359,1744966247667,-557.02105595,0.00076712,120]
[358346360,1744966247676,-500.0,0.00076712,120]
[358346361,1744966247686,-500.0,0.00076712,120]
[358346362,1744966247695,-500.0,0.00076712,120]
[358346363,1744966247703,-500.0,0.00076712,120]
[358346364,1744966247713,-500.0,0.00076712,120]
[358346365,1744966247723,-583.37789881,0.00076712,120]
[358346366,1744966247732,-500.0,0.00076712,120]
[358346367,1744966247741,-500.0,0.00076712,120]
[358346368,1744966247751,-500.0,0.00076712,120]
[358346369,1744966247760,-500.0,0.00076712,120]
[358346370,1744966247769,-641.16,0.00076712,120]
[358346371,1744966247779,-1024.45,0.00076712,7]
[358346372,1744966247787,-585.59,0.00076712,120]
[358346373,1744966247797,-503.15,0.00076712,120]
[358346374,1744966247806,-500.0,0.00076712,120]
[358346375,1744966247815,-500.0,0.00076712,120]
[358346376,1744966247824,-500.0,0.00076712,120]
[358346377,1744966247835,-500.0,0.00076712,120]
[358346378,1744966247843,-500.0,0.00076712,120]
[358346379,1744966247853,-577.91701868,0.00076712,120]
[358346380,1744966247863,-500.0,0.00076712,2]
[358346381,1744966247873,-500.0,0.00076712,2]
[358346382,1744966247885,-500.0,0.00076712,2]
[358346383,1744966247895,-500.0,0.00076712,2]
[358346384,1744966247904,-500.0,0.00076712,2]
[358346385,1744966247913,-500.0,0.00076712,120]
[358346386,1744966247924,-500.0,0.00076712,120]
[358346387,1744966247934,-500.0,0.00076712,120]
[358346388,1744966247943,-500.0,0.00076712,120]
[358346389,1744966247952,-896.03,0.00076712,120]
[358346390,1744966247964,-500.0,0.00076712,120]
[358346391,1744966247973,-500.0,0.00076712,120]
[358346392,1744966247982,-500.0,0.00076712,120]
[358346393,1744966247991,-500.0,0.00076712,120]
[358346394,1744966248001,-500.0,0.00076712,120]
[358346395,1744966248011,-500.0,0.00076712,120]
[358346396,1744966248020,-515.19281424,0.00076712,120]
[358346397,1744966248029,-500.0,0.00076712,120]
[358346398,1744966248038,-500.0,0.00076712,120]
[358346399,1744966248047,-500.0,0.00076712,120]
[358346400,1744966248057,-523.82655043,0.00076712,120]
[358346401,1744966248067,-500.0,0.00076712,120]
[358346402,1744966248076,-500.0,0.00076712,120]
[358346403,1744966248086,-458.87701825,0.00076712,120]
[358346404,1744966248095,-290.95790471,0.00076712,120]
[358346405,1744966248105,-500.0,0.00076712,2]
[358346406,1744966248115,-500.0,0.00076712,120]
[358346407,1744966248126,-534.01283032,0.00076712,120]
[358346408,1744966248135,-562.25484715,0.00076712,120]
[358346409,1744966248144,-502.68931434,0.00076712,120]
[358346410,1744966248154,-500.0,0.00076713,120]
[358346411,1744966248163,-151.0,0.00076713,120]
[358346412,1744966248174,-151.0,0.00076724,120]
[358346413,1744966248184,-157.183269,0.00076724,120]
[358346414,1744966248194,-151.0,0.00076724,120]
[358346415,1744966248204,-151.0,0.00076761,120]
[358346416,1744966248213,-151.0,0.00076762,120]
[358346417,1744966248223,-151.0,0.00076977,120]
[358346418,1744966248233,-157.391749,0.00076977,120]
[358346419,1744966248243,-157.391749,0.00076977,120]
[358346420,1744966248253,-203.57267759,0.00076977,60]
[358346421,1744966248263,-151.0,0.00076989,120]
[358346422,1744966248273,-151.0,0.00076989,120]
[358346423,1744966248283,-151.0,0.00076989,120]
[358346424,1744966248293,-1783.49,0.00077,60]
[358346425,1744966248303,-20000.0,0.00077,120]
[358346426,1744966248313,-151.0,0.00077,120]
[358346427,1744966248323,-151.0,0.00077,120]
[358346428,1744966248332,-151.0,0.00077,120]
[358346429,1744966248342,-151.0,0.00077,120]
[358346430,1744966248351,-297.422328,0.00077,120]
[358346431,1744966248360,-151.0,0.00077,120]
[358346432,1744966248370,-297.422328,0.00077,120]
[358346433,1744966248380,-151.0,0.00077,120]
[358346434,1744966248390,-151.0,0.00077,120]
[358346435,1744966248400,-151.0,0.00077,120]
[358346436,1744966248409,-151.0,0.00077,60]
[358346437,1744966248419,-151.0,0.00077,120]
[358346438,1744966248429,-151.0,0.00077,120]
[358346439,1744966248438,-151.0,0.00077,120]
[358346440,1744966248447,-151.0,0.00077,120]
[358346441,1744966248457,-151.0,0.00077,120]
[358346442,1744966248466,-229.12,0.00077063,2]
[358346443,1744966248475,-151.56608142,0.000771,60]
[358346444,1744966248484,-600.0,0.00077254,120]
[358346445,1744966248493,-500.0,0.0007726,120]
[358346446,1744966248503,-500.0,0.0007726,120]
[358346447,1744966248512,-500.0,0.0007726,120]
[358346448,1744966248522,-500.0,0.0007726,120]
[358346449,1744966248532,-151.0,0.0007731,120]
[358346450,1744966248541,-151.0,0.0007731,120]
[358346451,1744966248550,-151.0,0.0007731,120]
[358346452,1744966248559,-375.0,0.00077412,120]
[358346453,1744966248569,-1000.0,0.00077432,120]
[358346454,1744966248579,-338.46552385,0.00077698,120]
[358346455,1744966248588,-151.0,0.000777,120]
[358346456,1744966248598,-151.0,0.000777,120]
[358346457,1744966248608,-300.0,0.00077799,60]
[358346458,1744966248618,-300.0,0.00077799,60]
[358346459,1744966248627,-290.77970018,0.00077799,120]
[358346460,1744966248637,-500.0,0.00077799,2]
[358346461,1744966248646,-500.0,0.00077799,2]
[358346462,1744966248655,-300.0,0.00077799,60]
[358346463,1744966248664,-563000.0,0.000778,120]
[358346464,1744966248674,-23431.20579469,0.000778,120]
[358346465,1744966248684,-151.0,0.000778,120]
[358346466,1744966248694,-247.217208,0.000778,120]
[358346467,1744966248703,-151.0,0.000778,120]
[358346468,1744966248713,-151.0,0.000778,120]
[358346469,1744966248723,-151.0,0.000778,120]
[358346470,1744966248733,-151.0,0.000778,120]
[358346471,1744966248742,-151.0,0.000778,120]
[358346472,1744966248752,-151.0,0.000778,120]
[358346473,1744966248761,-151.0,0.000778,120]
[358346474,1744966248771,-151.0,0.000778,120]
[358346475,1744966248781,-151.0,0.000778,120]
[358346476,1744966248790,-152.958871,0.000778,120]
[358346477,1744966248799,-186.925723,0.000778,2]
[358346478,1744966248809,-151.0,0.000778,120]
[358346479,1744966248818,-186.925723,0.000778,2]
[358346480,1744966248828,-151.0,0.000778,120]
[358346481,1744966248837,-151.0,0.000778,120]
[358346482,1744966248846,-151.0,0.000778,120]
[358346483,1744966248856,-295.768273,0.000778,120]
[358346484,1744966248865,-151.0,0.000778,120]
[358346485,1744966248875,-232.565358,0.000778,120]
[358346486,1744966248886,-428.501196,0.000778,120]
[358346487,1744966248896,-428.501196,0.000778,120]
[358346488,1744966248906,-151.0,0.000778,120]
[358346489,1744966248915,-151.0,0.000778,120]
[358346490,1744966248925,-151.0,0.000778,120]
[358346491,1744966248934,-151.0,0.000778,120]
[358346492,1744966248944,-157.391749,0.000778,120]
[358346493,1744966248953,-157.391749,0.000778,120]
[358346494,1744966248963,-1000.0,0.000778,28]
[358346495,1744966248973,-151.0,0.000778,120]
[358346496,1744966248983,-151.0,0.000778,120]
[358346497,1744966248992,-159.369043,0.000778,120]
[358346498,1744966249002,-151.0,0.000778,120]
[358346499,1744966249012,-201.631797,0.000778,120]
[358346500,1744966249022,-151.0,0.000778,120]
[358346501,1744966249031,-151.0,0.000778,120]
[358346502,1744966249041,-153.604255,0.000778,120]
[358346503,1744966249051,-151.0,0.000778,120]
[358346504,1744966249060,-297.422328,0.000778,120]
[358346505,1744966249070,-297.422328,0.000778,120]
[358346506,1744966249079,-151.0,0.000778,120]
[358346507,1744966249089,-209.350256,0.000778,120]
[358346508,1744966249098,-151.0,0.000778,120]
[358346509,1744966249107,-151.965418,0.000778,60]
[358346510,1744966249116,-151.0,0.000778,120]
[358346511,1744966249126,-151.0,0.000778,120]
[358346512,1744966249135,-151.0,0.000778,120]
[358346513,1744966249145,-151.0,0.000778,120]
[358346514,1744966249155,-151.0,0.000778,120]
[358346515,1744966249164,-500.0,0.00077808,120]
[358346516,1744966249174,-535.3198721,0.00077808,120]
[358346517,1744966249183,-550.10000762,0.00077808,120]
[358346518,1744966249193,-500.0,0.00077808,120]
[358346519,1744966249202,-500.0,0.00077899,2]
[358346520,1744966249211,-1300.0,0.000779,28]
[358346521,1744966249220,-300.0,0.00077999,60]
[358346522,1744966249231,-500.0,0.00077999,2]
[358346523,1744966249241,-300.0,0.00077999,60]
[358346524,1744966249250,-1040.87367098,0.00078,120]
[358346525,1744966249260,-115132.4455394,0.00078,30]
[358346526,1744966249395,-3775.16918588,0.00078,30]
[358346527,1744966249407,-199949.76923349,0.00078,30]
[358346528,1744966249419,-752.97687989,0.00078,30]
[358346529,1744966249431,-439.49024001,0.00078,30]
[358346530,1744966249520,-12630.84697826,0.00078,30]
[358346531,1744966249529,-151.0,0.00078,120]
[358346532,1744966249539,-151.0,0.00078,120]
[358346533,1744966249550,-151.0,0.00078,120]
[358346534,1744966249559,-151.0,0.00078,120]
[358346535,1744966249568,-151.0,0.00078,120]
[358346536,1744966249577,-151.0,0.00078,120]
[358346537,1744966249587,-186.925723,0.00078,2]
[358346538,1744966249596,-151.0,0.00078,120]
[358346539,1744966249605,-186.925723,0.00078,2]
[358346540,1744966249614,-300.043138,0.00078,120]
[358346541,1744966249625,-186.846544,0.00078,120]
[358346542,1744966249635,-151.0,0.00078,120]
[358346543,1744966249644,-151.0,0.00078,120]
[358346544,1744966249653,-428.501196,0.00078,120]
[358346545,1744966249662,-428.501196,0.00078,120]
[358346546,1744966249671,-245.27401,0.00078,120]
[358346547,1744966249680,-237.607399,0.00078,120]
[358346548,1744966249690,-151.0,0.00078,120]
[358346549,1744966249700,-151.0,0.00078,120]
[358346550,1744966249709,-157.391749,0.00078,120]
[358346551,1744966249719,-157.391749,0.00078,120]
[358346552,1744966249727,-151.0,0.00078,120]
[358346553,1744966249737,-151.0,0.00078,120]
[358346554,1744966249746,-153.166387,0.00078,120]
[358346555,1744966249755,-151.0,0.00078,120]
[358346556,1744966249764,-151.0,0.00078,120]
[358346557,1744966249773,-151.0,0.00078,120]
[358346558,1744966249782,-151.0,0.00078,120]
[358346559,1744966249792,-297.422328,0.00078,120]
[358346560,1744966249802,-297.422328,0.00078,120]
[358346561,1744966249812,-297.422328,0.00078,120]
[358346562,1744966249822,-297.422328,0.00078,120]
[358346563,1744966249832,-151.0,0.00078,120]
[358346564,1744966249843,-151.0,0.00078,120]
[358346565,1744966249853,-151.0,0.00078,120]
[358346566,1744966249862,-151.0,0.00078,120]
[358346567,1744966249871,-151.0,0.00078,120]
[358346568,1744966249881,-151.0,0.00078,120]
[358346569,1744966249893,-151.0,0.00078,120]
[358346570,1744966249903,-151.0,0.00078,120]
[358346571,1744966249913,-151.0,0.00078,120]
[358346572,1744966249922,-500.0,0.00078356,120]
[358346573,1744966249932,-437.07730486,0.00078356,120]
[358346574,1744966249943,-2308.10385414,0.00078438,15]
[358346575,1744966249952,-1783.49,0.000785,60]
[358346576,1744966249961,-6157.96671146,0.00078549,15]
[358346577,1744966249971,-289.24138552,0.00078699,60]
[358346578,1744966249981,-3377.12960796,0.000787,2]
[358346579,1744966249991,-456.48446181,0.000787,2]
[358346580,1744966250001,-8793.18118424,0.000787,2]
[358346581,1744966250011,-151.0,0.000787,120]
[358346582,1744966250022,-151.0,0.000787,120]
[358346583,1744966250031,-205.507495,0.000787,120]
[358346584,1744966250039,-1163.81788415,0.000787,2]
[358346585,1744966250048,-193.37308347,0.000787,17]
[358346586,1744966250058,-151.0,0.000787,120]
[358346587,1744966250067,-151.0,0.000787,120]
[358346588,1744966250077,-176.89,0.00078783,120]
[358346589,1744966250086,-153.16463322,0.0007879,7]
[358346590,1744966250095,-784207.53183799,0.00078799,3]
[358346591,1744966250105,-327.75067898,0.00078799,58]
[358346592,1744966250114,-161.74428767,0.00078799,60]
[358346593,1744966250124,-500.0,0.00078799,2]
[358346594,1744966250133,-500.0,0.00078799,2]
[358346595,1744966250143,-500.0,0.00078799,2]
[358346596,1744966250152,-500.0,0.00078799,2]
[358346597,1744966250162,-500.0,0.00078799,2]
[358346598,1744966250171,-500.0,0.00078799,2]
[358346599,1744966250181,-899.61717251,0.000788,120]
[358346600,1744966250191,-1330000.0,0.000788,120]
[358346601,1744966250200,-151.0,0.000788,120]
[358346602,1744966250209,-151.0,0.000788,120]
[358346603,1744966250219,-218.147334,0.000788,120]
[358346604,1744966250228,-247.966837,0.000788,120]
[358346605,1744966250238,-246.011735,0.000788,120]
[358346606,1744966250247,-151.0,0.000788,120]
[358346607,1744966250258,-186.925723,0.000788,2]
[358346608,1744966250268,-151.0,0.000788,120]
[358346609,1744966250277,-186.925723,0.000788,2]
[358346610,1744966250286,-156.434647,0.000788,120]
[358346611,1744966250296,-203.202523,0.000788,120]
[358346612,1744966250306,-428.501196,0.000788,120]
[358346613,1744966250315,-428.501196,0.000788,120]
[358346614,1744966250325,-159.725837,0.000788,120]
[358346615,1744966250334,-235.954009,0.000788,120]
[358346616,1744966250344,-157.391749,0.000788,120]
[358346617,1744966250354,-157.391749,0.000788,120]
[358346618,1744966250364,-151.0,0.000788,120]
[358346619,1744966250375,-151.0,0.000788,120]
[358346620,1744966250385,-151.0,0.000788,120]
[358346621,1744966250394,-220.915578,0.000788,120]
[358346622,1744966250404,-151.0,0.000788,120]
[358346623,1744966250414,-297.422328,0.000788,120]
[358346624,1744966250424,-297.422328,0.000788,120]
[358346625,1744966250433,-151.0,0.000788,120]
[358346626,1744966250443,-151.0,0.000788,120]
[358346627,1744966250454,-194.525444,0.000788,120]
[358346628,1744966250464,-151.0,0.000788,120]
[358346629,1744966250474,-151.0,0.000788,120]
[358346630,1744966250484,-1700.0,0.000789,28]
[358346631,1744966250493,-500.0,0.00078904,120]
[358346632,1744966250502,-2703.44783271,0.00079,14]
[358346633,1744966250641,-29128.22443413,0.00079,120]
[358346634,1744966250652,-375.0,0.00079163,120]
[358346635,1744966250662,-229.12,0.00079327,2]
[358346636,1744966250672,-500.0,0.00079452,120]
[358346637,1744966250682,-500.0,0.00079452,120]
[358346638,1744966250692,-500.0,0.00079452,120]
[358346639,1744966250702,-500.0,0.00079452,120]
[358346640,1744966250711,-500.0,0.00079452,120]
[358346641,1744966250720,-454.8359678,0.00079452,120]
[358346642,1744966250730,-500.0,0.00079452,120]
[358346643,1744966250740,-500.0,0.00079452,14]
[358346644,1744966250749,-919.17,0.00079452,120]
[358346645,1744966250760,-612.43129338,0.00079452,14]
[358346646,1744966250769,-500.0,0.00079452,120]
[358346647,1744966250779,-601.29673482,0.00079452,120]
[358346648,1744966250789,-500.0,0.00079452,120]
[358346649,1744966250798,-500.0,0.00079452,120]
[358346650,1744966250808,-500.0,0.00079452,120]
[358346651,1744966250818,-500.0,0.00079452,120]
[358346652,1744966250828,-242.0129207,0.00079452,120]
[358346653,1744966250838,-500.0,0.00079452,120]
[358346654,1744966250848,-500.0,0.00079452,120]
[358346655,1744966250857,-655.13,0.00079452,120]
[358346656,1744966250867,-500.0,0.00079452,120]
[358346657,1744966250877,-500.0,0.00079452,120]
[358346658,1744966250888,-500.0,0.00079452,120]
[358346659,1744966250898,-500.0,0.00079452,120]
[358346660,1744966250907,-723.29,0.00079452,120]
[358346661,1744966250917,-500.0,0.00079452,120]
[358346662,1744966250927,-500.0,0.00079452,120]
[358346663,1744966250936,-546.26221401,0.00079452,120]
[358346664,1744966250946,-500.0,0.00079452,120]
[358346665,1744966250955,-534.64244176,0.00079452,120]
[358346666,1744966250966,-500.0,0.00079452,120]
[358346667,1744966250976,-536.02501545,0.00079452,120]
[358346668,1744966250985,-518.3632483,0.00079452,120]
[358346669,1744966250995,-500.0,0.00079452,120]
[358346670,1744966251004,-530.51653043,0.00079452,120]
[358346671,1744966251014,-186.81918855,0.00079452,120]
[358346672,1744966251023,-500.0,0.00079452,120]
[358346673,1744966251032,-500.0,0.00079452,120]
[358346674,1744966251041,-500.0,0.00079452,120]
[358346675,1744966251051,-500.0,0.00079452,120]
[358346676,1744966251060,-641.16,0.00079452,120]
[358346677,1744966251069,-585.59,0.00079452,120]
[358346678,1744966251079,-503.15,0.00079452,120]
[358346679,1744966251088,-500.0,0.00079452,120]
[358346680,1744966251097,-527.93038494,0.00079452,120]
[358346681,1744966251107,-500.0,0.00079452,120]
[358346682,1744966251116,-500.0,0.00079452,120]
[358346683,1744966251125,-500.0,0.00079452,120]
[358346684,1744966251135,-896.03,0.00079452,120]
[358346685,1744966251144,-507.03726267,0.00079452,120]
[358346686,1744966251153,-542.08292134,0.00079452,120]
[358346687,1744966251163,-500.0,0.00079452,120]
[358346688,1744966251172,-500.0,0.00079452,120]
[358346689,1744966251182,-603.4057803,0.00079452,120]
[358346690,1744966251191,-500.0,0.00079452,120]
[358346691,1744966251202,-574.95812242,0.00079452,120]
[358346692,1744966251211,-546.18220208,0.00079452,120]
[358346693,1744966251221,-500.0,0.00079452,120]
[358346694,1744966251230,-500.0,0.00079452,120]
[358346695,1744966251240,-500.0,0.00079452,120]
[358346696,1744966251250,-500.0,0.00079452,2]
[358346697,1744966251259,-500.0,0.00079452,120]
[358346698,1744966251269,-18709.90180897,0.000797,120]
[358346699,1744966251279,-345.60296869,0.000799,120]
[358346700,1744966251288,-193.9546127,0.000799,120]
[358346701,1744966251298,-1641.0,0.00079973,120]
[358346702,1744966251307,-9013.0,0.00079973,120]
[358346703,1744966251317,-151.42924855,0.0007998,60]
[358346704,1744966251327,-1065.17756577,0.0007998,30]
[358346705,1744966251337,-453.08516514,0.0007998,60]
[358346706,1744966251346,-2075.53391264,0.00079999,120]
[358346707,1744966251356,-572.62641146,0.00079999,2]
[358346708,1744966251365,-929.84271673,0.0008,120]
[358346709,1744966251375,-874.0,0.0008,120]
[358346710,1744966251385,-69980.36,0.0008,60]
[358346711,1744966251395,-892237.58528299,0.0008,120]
[358346712,1744966251412,-1708.64623355,0.0008,120]
[358346719,1744966371462,1244.55763654,0.0002488,7]
[358346729,1744966550496,250.0,0.00017,2]
[358346730,1744966551595,300.0,0.00019,2]
[358346747,1744967132087,-438.74199155,0.000499,2]
[358346748,1744967227135,-0.26950655,0.000499,2]
[358346749,1744967227160,-550.0,0.00049999,10]
[358346750,1744967227182,-305.78394374,0.00049999,15]
[358346751,1744967231289,-244.21605626,0.00049999,15]
[358346752,1744967231315,-500.0,0.0005,2]
[358346753,1744967231342,-500.0,0.0005,2]
[358346754,1744967231367,-500.0,0.0005,2]
[358346755,1744967231393,-500.0,0.0005,2]
[358346756,1744967231415,-519.836056,0.00052,67]
[358346757,1744967231439,-429.0,0.00052,120]
[358346758,1744967231464,-192.0,0.00052777,15]
[358346759,1744967231489,-1280.27715793,0.000529,24]
[358346760,1744967231513,-350.0,0.0005294,10]
[358346761,1744967231536,-250.0,0.0005489,2]
[358346762,1744967231560,-169.737325,0.00058629,2]
[358346763,1744967231584,-5840.60047727,0.00058729,2]
[358346764,1744967233087,-528.46808948,0.00058729,2]
[358346765,1744967235086,-606.039713,0.00058336,12]
[358346766,1744967235112,-309.80143325,0.00058729,2]
[358346767,1744967235132,-548.97970866,0.00058968,2]
[358346768,1744967252083,-451.02029134,0.00058968,2]
[358346769,1744967252104,-548.97792918,0.00060995,120]
[358346770,1744967405411,-150.0,0.00031,2]
[358346771,1744967431873,-226.0,0.00041,2]
[358346772,1744967431884,-80.0,0.00052222,120]
[358346773,1744967431897,-812.10250175,0.00052222,120]
[358346774,1744967431907,-51.02207082,0.00060995,120]
[358346775,1744967431917,-288.27417391,0.00069003,2]
[358346776,1744967431927,-600.0,0.00069511,120]
[358346777,1744967431938,-1000.0,0.0007,9]
[358346778,1744967431948,-500.0,0.00071196,120]
[358346779,1744967431958,-500.0,0.00072848,120]
[358346780,1744967431969,-199.65990929,0.00072938,5]
[358346781,1744967431979,-500.0,0.00073999,120]
[358346782,1744967431989,-161.58,0.00074439,120]
[358346783,1744967431999,-153.2,0.000745,72]
[358346784,1744967432009,-153.2,0.000745,72]
[358346785,1744967432020,-153.2,0.000745,72]
[358346786,1744967432030,-153.2,0.000745,72]
[358346787,1744967432040,-153.2,0.000745,72]
[358346789,1744967432052,-153.2,0.000745,72]
[358346791,1744967432062,-153.2,0.000745,72]
[358346793,1744967432072,-153.2,0.000745,72]
[358346795,1744967432083,-153.2,0.000745,72]
[358346816,1744967432092,-9809.4,0.00074837,2]
[358346817,1744967432313,-1237.60125254,0.000749,38]
[358346818,1744967432327,-500.0,0.00075,120]
[358346819,1744967432336,-500.0,0.00075,120]
[358346820,1744967432345,-1000.0,0.00075,120]
[358346821,1744967432354,-1000.0,0.00075,120]
[358346822,1744967432373,-500.0,0.000755,120]
[358346823,1744967432383,-1000.0,0.00075768,120]
[358346824,1744967432392,-155.33,0.00075896,2]
[358346825,1744967432401,-500.0,0.00076,120]
[358346826,1744967432411,-167.08,0.00076172,2]
[358346827,1744967432421,-369.0,0.00076702,2]
[358346828,1744967432432,-425.334,0.00076711,120]
[358346829,1744967432442,-550.0,0.00076711,20]
[358346830,1744967432451,-1071.86991515,0.00076711,120]
[358346832,1744967432462,-1071.86991515,0.00076711,120]
[358346834,1744967432471,-1071.86991515,0.00076711,120]
[358346836,1744967432482,-1071.86991515,0.00076711,120]
[358346838,1744967432491,-1071.86991515,0.00076711,120]
[358346840,1744967432501,-1071.86991515,0.00076711,120]
[358346841,1744967432511,-549.44962749,0.00076711,120]
[358346842,1744967432529,-666.47201684,0.00076,120]
[358346843,1744967432541,-1158.5934276,0.00076,120]
[358346845,1744967437891,-36978.02907116,0.00076,120]
[358346846,1744967437903,-2691.20000279,0.00076,120]
[358346847,1744967437914,-13268.93537521,0.00076,120]
[358346852,1744967439935,-17565.05762581,0.00076,120]
[358346853,1744967439944,-522.42028766,0.00076711,120]
[358346854,1744967439954,-1071.86991515,0.00076711,120]
[358346855,1744967439963,-1071.86991515,0.00076711,120]
[358346856,1744967439972,-1071.86991515,0.00076711,120]
[358346857,1744967439982,-1071.86991515,0.00076711,120]
[358346858,1744967439991,-1071.86991515,0.00076711,120]
[358346859,1744967440001,-1071.86991515,0.00076711,120]
[358346860,1744967440010,-1071.86991515,0.00076711,120]
[358346861,1744967440019,-1071.86991515,0.00076711,120]
[358346862,1744967440028,-1071.86991515,0.00076711,120]
[358346863,1744967440037,-1071.86991515,0.00076711,120]
[358346864,1744967440047,-1071.86991515,0.00076711,120]
[358346865,1744967440056,-1071.86991515,0.00076711,120]
[358346866,1744967440066,-1071.86991515,0.00076711,120]
[358346867,1744967440075,-1071.86991515,0.00076711,120]
[358346868,1744967440085,-1071.86991515,0.00076711,120]
[358346869,1744967440094,-1071.86991515,0.00076711,120]
[358346870,1744967440103,-1071.86991515,0.00076711,120]
[358346871,1744967440112,-1071.86991515,0.00076711,120]
[358346872,1744967440121,-1071.86991515,0.00076711,120]
[358346873,1744967440130,-1071.86991515,0.00076711,120]
[358346874,1744967440140,-1071.86991515,0.00076711,120]
[358346875,1744967440149,-1071.86991515,0.00076711,120]
[358346876,1744967440158,-651.66195324,0.00076711,120]
[358346877,1744967440174,-420.20796191,0.00076711,120]
[358346878,1744967440184,-1071.86991515,0.00076711,120]
[358346879,1744967440193,-1071.86991515,0.00076711,120]
[358346880,1744967440202,-1071.86991515,0.00076711,120]
[358346881,1744967440211,-1071.86991515,0.00076711,120]
[358346882,1744967440221,-1071.86991515,0.00076711,120]